[Event "Slovakia Open 2022"]
[Site "Bratislava"]
[Date "2022.10.02"]
[Round "8.34"]
[White "Rehacek, Oldrich"]
[Black "Ruderfer, Mark B"]
[Result "1-0"]
[ECO "A01"]
[WhiteElo "1366"]
[BlackElo "2236"]
[Annotator "TA"]
[PlyCount "81"]
[EventDate "2022.09.30"]
[EventCountry "SVK"]
[SourceTitle "playchess.com"]
[Source "ChessBase"]
[SourceQuality "1"]
[TimeControl "2700+10"]

{[%evp 13,81,35,21,16,46,41,39,16,23,27,20,30,73,25,33,-56,48,0,0,0,0,0,0,-2,97,91,110,-150,133,133,241,241,247,264,246,255,264,235,256,245,218,172,278,241,272,268,254,209,373,362,1855,2074,1743,1861,2397,2023,29962,29967,29970,29973,29975,29976,29975,29976,29982,29983,29983,29984,29984,29985]} 1. b3 {[%emt 0:00:19]} e5 {[%emt 0:00:17]} 2. Bb2 {[%emt 0:00:02]} Nc6 {[%emt 0:00:06]} 3. e3 {[%emt 0:00:12]} d5 {[%emt 0:00:10]} 4. Bb5 {[%emt 0:00:00]} Bd6 {[%emt 0:00:31]} 5. Nf3 {[%emt 0:00:06]} Bg4 {[%emt 0:00:56]} 6. h3 {[%emt 0:00:10]} Bxf3 {[%emt 0:00:02]} 7. Qxf3 {[%emt 0:00:03]} Nf6 {[%emt 0:00:17]} 8. O-O {[%emt 0:00:35] A01: Nimzowitsch-Larsen Opening.} a6 {[%emt 0:00:19]} 9. Bxc6+ {[%emt 0:00:27]} bxc6 {[%emt 0:00:03]} 10. d3 {[%emt 0:00:45] White is slightly better.} O-O {[%emt 0:00:12] [#]} 11. c4 $146 {[%emt 0:01:02]} ({Predecessor:} 11. Rd1 Qd7 12. c4 Rfe8 13. Nc3 d4 14. exd4 exd4 15. Ne4 Nxe4 16. dxe4 Be5 17. Rd2 {1-0 (30) Formaggini,V-Barchiesi,G (1221) Rosario 2017}) 11... Qe7 {[%emt 0:01:18]} 12. Nc3 {[%emt 0:01:49][%cal Rc4d5]} d4 {[%emt 0:08:32]} 13. exd4 {[%emt 0:03:06]} (13. Na4 $16) 13... exd4 $11 {[%emt 0:02:14] [#] White must now prevent ...Qe5.} 14. Rfe1 {[%emt 0:00:56] Prevents Qe5.} (14. Na4 $14) 14... Qd7 {[%emt 0:00:07]} ({Black should try} 14... dxc3 $15 15. Rxe7 cxb2) 15. Ne4 {[%emt 0:00:44]} (15. Na4 $14) 15... Nxe4 {[%emt 0:00:01]} 16. Rxe4 {[%emt 0:01:53]} c5 {[%emt 0:00:04]} 17. Rae1 {[%emt 0:01:30]} a5 {[%emt 0:03:29]} 18. Bc1 {[%emt 0:01:54]} f5 {[%emt 0:06:07]} (18... a4 $11) 19. Re6 $36 {[%emt 0:02:56][%mdl 2048] White is in control.} Rae8 {[%emt 0:02:03]} 20. Qd5 {[%emt 0:02:24][%mdl 8192] White is more active.} (20. Rxe8 $16 Rxe8 21. Bd2) 20... Rxe6 $2 {[%emt 0:00:03]} (20... c6 $17 {keeps the pressure on.} 21. Qxd6 Qxd6 22. Rxe8 Rxe8 23. Rxe8+ Kf7) 21. Rxe6 {[%emt 0:01:47] [#] Re7+ is the strong threat. Black is on the road to losing.} Kh8 {[%emt 0:00:02]} (21... Qf7 $16 {was worth a try.} 22. Kf1 Kh8) 22. Bf4 $18 {[%emt 0:02:10][%cal Rf4d6]} Rd8 {[%emt 0:02:01]} 23. Bxd6 {[%emt 0:02:59]} cxd6 {[%emt 0:00:03]} 24. Qxf5 {[%emt 0:01:56]} Re8 {[%emt 0:00:37]} 25. Rxe8+ {[%emt 0:00:54]} Qxe8 {[%emt 0:00:03][%mdl 4096] Endgame KQ-KQ} 26. Kf1 {[%emt 0:03:12]} h6 {[%emt 0:01:41]} 27. Qd5 {[%emt 0:00:39]} Qd8 {[%emt 0:01:49]} (27... Qg6 $142) 28. g3 {[%emt 0:02:25]} Kh7 {[%emt 0:00:04]} 29. Qf5+ {[%emt 0:00:21]} Kg8 {[%emt 0:00:12]} 30. Qe6+ {[%emt 0:00:15]} Kf8 $2 {[%emt 0:00:08]} (30... Kh8 31. Ke2 Qf8) 31. Ke2 {[%emt 0:00:47]} Qe7 $2 {[%emt 0:00:34]} (31... Qb6 32. Kf3 Qd8) 32. Qxe7+ {[%emt 0:00:07]} Kxe7 {[%emt 0:00:02] KP-KP} 33. Kf3 {[%emt 0:00:09]} g6 {[%emt 0:00:32]} 34. Ke4 {[%emt 0:00:04] White wants to mate with f4.} Ke6 {[%emt 0:00:43]} 35. f4 {[%emt 0:00:38] White mates.} Ke7 {[%emt 0:02:24]} 36. Kd5 {[%emt 0:00:26]} Kd7 {[%emt 0:00:04]} 37. g4 {[%emt 0:00:05]} Ke7 {[%emt 0:01:53]} 38. h4 {[%emt 0:00:14]} Kf6 {[%emt 0:02:02]} 39. Kxd6 {[%emt 0:00:15]} h5 {[%emt 0:02:01]} 40. gxh5 {[%emt 0:00:32]} gxh5 {[%emt 0:00:02]} 41. Kxc5 {[%emt 0:00:08] Weighted Error Value: White=0.27 (precise) /Black=0.58} 1-0

[Event "Slovakia Open 2022"]
[Site "Bratislava"]
[Date "2022.10.02"]
[Round "8.35"]
[White "Nikpour Aryabod"]
[Black "Merva Max"]
[Result "1-0"]
[ECO "C42"]
[WhiteElo "1000"]
[BlackElo "1000"]
[Annotator "NA RC COMBH"]
[PlyCount "83"]
[EventDate "2022.09.30"]
[EventCountry "SVK"]
[SourceTitle "playchess.com"]
[Source "ChessBase"]
[SourceQuality "1"]
[TimeControl "2700+10"]

1. e4 {[%emt 0:00:04]} e5 {[%emt 0:00:20]} 2. Nf3 {[%emt 0:00:03]} Nf6 {[%emt 0:00:35]} 3. Nxe5 {[%emt 0:00:04]} Bd6 {[%emt 0:00:41]} 4. Nf3 {[%emt 0:00:04]} Nc6 {[%emt 0:00:24]} 5. Nc3 {[%emt 0:00:06]} O-O {[%emt 0:00:37]} 6. d4 {[%emt 0:00:08]} Bb4 {[%emt 0:00:36]} 7. Bd3 {[%emt 0:00:28]} d6 {[%emt 0:00:28]} 8. Bg5 {[%emt 0:00:37]} Bg4 {[%emt 0:00:24]} 9. Be3 {[%emt 0:00:42]} d5 {[%emt 0:00:48]} 10. exd5 {[%emt 0:02:08]} Nxd5 {[%emt 0:00:22]} 11. Qd2 {[%emt 0:00:45]} Qd6 {[%emt 0:00:55]} 12. a3 {[%emt 0:00:31]} Ba5 {[%emt 0:00:18]} 13. O-O-O {[%emt 0:01:29]} Rfe8 {[%emt 0:00:58]} 14. h3 {[%emt 0:00:14]} Bh5 {[%emt 0:00:21]} 15. g4 {[%emt 0:00:36]} Bg6 {[%emt 0:00:23]} 16. Bxg6 {[%emt 0:00:37]} fxg6 {[%emt 0:00:19]} 17. Qd3 {[%emt 0:00:58]} Qe6 {[%emt 0:01:46]} 18. Nxd5 {[%emt 0:01:36]} Qxd5 {[%emt 0:00:30]} 19. Ne5 {[%emt 0:03:05]} Qa2 {[%emt 0:00:46]} 20. Qc4+ {[%emt 0:01:10]} Qxc4 {[%emt 0:00:54]} 21. Nxc4 {[%emt 0:00:04]} h5 {[%emt 0:00:57]} 22. d5 {[%emt 0:00:24]} hxg4 {[%emt 0:02:23]} 23. hxg4 {[%emt 0:00:16]} Red8 {[%emt 0:00:38]} 24. dxc6 {[%emt 0:00:10]} Rxd1+ {[%emt 0:00:10]} 25. Rxd1 {[%emt 0:00:02]} b6 {[%emt 0:00:38]} 26. b4 {[%emt 0:00:10]} Kf7 {[%emt 0:00:10]} 27. Ne5+ {[%emt 0:00:19]} Kf6 {[%emt 0:00:34]} 28. Nd7+ {[%emt 0:00:03]} Ke6 {[%emt 0:00:48]} 29. bxa5 {[%emt 0:00:13]} b5 {[%emt 0:00:31]} 30. Nc5+ {[%emt 0:00:03]} Kf7 {[%emt 0:00:10]} 31. Rd7+ {[%emt 0:00:10]} Kf6 {[%emt 0:00:45]} 32. Rxc7 {[%emt 0:00:08]} Ke5 {[%emt 0:01:58]} 33. Rxg7 {[%emt 0:00:10]} Rd8 {[%emt 0:00:10]} 34. Rc7 {[%emt 0:00:10]} Kf6 {[%emt 0:00:10]} 35. Rb7 {[%emt 0:00:23]} a6 {[%emt 0:00:48]} 36. c7 {[%emt 0:00:36]} Kg7 {[%emt 0:00:10]} 37. Ra7 {[%emt 0:00:10]} Kf8 {[%emt 0:00:10]} 38. Rb7 {[%emt 0:00:10]} Kf7 {[%emt 0:00:10]} 39. Ra7 {[%emt 0:00:10]} Kg7 {[%emt 0:00:10]} 40. Rb7 {[%emt 0:00:10]} Ra8 {[%emt 0:00:10]} 41. c8=Q+ {[%emt 0:00:10]} Kf6 {[%emt 0:00:10]} 42. Qe6# {[%emt 0:00:10]} 1-0

[Event "Slovakia Open 2022"]
[Site "Bratislava"]
[Date "2022.10.02"]
[Round "9.1"]
[White "Leniart, Arkadiusz"]
[Black "Stocek, Jiri"]
[Result "1/2-1/2"]
[ECO "B22"]
[WhiteElo "2479"]
[BlackElo "2559"]
[Annotator "TA"]
[PlyCount "69"]
[EventDate "2022.09.30"]
[EventCountry "SVK"]
[SourceTitle "playchess.com"]
[Source "ChessBase"]
[SourceQuality "1"]
[TimeControl "2700+10"]

{[%evp 13,69,22,29,25,27,0,12,0,22,0,0,0,0,0,2,9,7,14,14,28,25,35,50,5,22,8,18,25,10,0,0,0,0,0,8,9,12,11,6,0,0,0,0,0,0,0,4,0,4,0,0,0,5,0,6,0,10,0]} 1. e4 {[%emt 0:00:02]} c5 {[%emt 0:00:20]} 2. c3 {[%emt 0:00:02]} e6 {[%emt 0:00:04]} 3. d4 {[%emt 0:00:01]} d5 {[%emt 0:00:02]} 4. exd5 {[%emt 0:00:02]} exd5 {[%emt 0:00:03]} 5. Nf3 {[%emt 0:00:03]} Nc6 {[%emt 0:00:05]} 6. Bb5 {[%emt 0:00:02]} Bd6 {[%emt 0:00:07]} 7. dxc5 {[%emt 0:00:03]} Bxc5 {[%emt 0:00:02]} 8. O-O {[%emt 0:00:03] B22: Sicilian: 2 c3.} Nf6 {[%emt 0:00:17]} 9. Qe2+ {[%emt 0:03:37]} Be6 $1 {[%emt 0:02:06]} 10. Ng5 {[%emt 0:03:59]} Qd7 {[%emt 0:04:16] [#]} 11. Nd2 $146 {[%emt 0:02:16]} ({Predecessor:} 11. Nxe6 Qxe6 12. Nd2 O-O 13. Nb3 Bb6 14. a4 a6 15. Qxe6 fxe6 16. Bxc6 bxc6 17. a5 {½-½ (23) Herzog,M (800)-Van Erps,G (1550) LSS email 2015}) 11... O-O {[%emt 0:01:49]} 12. Nxe6 {[%emt 0:00:07]} fxe6 {[%emt 0:00:50]} 13. Nb3 {[%emt 0:08:02]} Bd6 {[%emt 0:03:43]} 14. Bg5 {[%emt 0:00:37]} Ne4 {[%emt 0:01:14]} 15. Be3 {[%emt 0:00:11]} Qc7 {[%emt 0:01:32]} 16. g3 {[%emt 0:02:53]} a6 {[%emt 0:01:56]} 17. Bd3 {[%emt 0:00:02]} Nf6 {[%emt 0:00:23]} 18. Bb6 {[%emt 0:01:43] A strong pair of Bishops.} Qf7 {[%emt 0:02:40]} 19. f4 {[%emt 0:01:10]} Rae8 {[%emt 0:00:30]} 20. Qg2 {[%emt 0:07:40]} e5 {[%emt 0:04:26]} 21. fxe5 {[%emt 0:00:02] The position is equal.} Nxe5 {[%emt 0:00:03]} 22. Bf5 {[%emt 0:00:03]} Nc4 {[%emt 0:02:54]} 23. Bd4 {[%emt 0:00:02]} Ne3 {[%emt 0:00:34]} 24. Bxe3 {[%emt 0:00:02]} Rxe3 {[%emt 0:00:02]} 25. Rae1 {[%emt 0:02:37]} Rfe8 {[%emt 0:01:05]} 26. Qd2 {[%emt 0:01:47]} R3e5 {[%emt 0:01:04]} 27. Nd4 {[%emt 0:01:39]} Bc5 {[%emt 0:01:07]} 28. Kg2 {[%emt 0:00:31]} Bxd4 {[%emt 0:00:22]} 29. cxd4 {[%emt 0:00:01]} R5e7 {[%emt 0:02:53]} 30. Bc2 {[%emt 0:01:42]} Qh5 {[%emt 0:02:20] [#] Strongly threatening ...Re2+.} 31. Bd1 {[%emt 0:00:24] Inhibits Re2+.} Qg6 {[%emt 0:00:12]} 32. Bc2 {[%emt 0:00:33]} Qh5 {[%emt 0:03:24] And now ...Re2+ would win.} 33. Bd1 {[%emt 0:00:03] Prevents Re2+.} Qg6 {[%emt 0:00:19]} 34. Bc2 {[%emt 0:00:13]} Qh5 {[%emt 0:02:58] [#] Hoping for ...Re2+.} 35. Bd1 {[%emt 0:00:03] Prevents Re2+.  Weighted Error Value: White=0.06 (flawless) /Black=0.03 (flawless)} 1/2-1/2

[Event "Slovakia Open 2022"]
[Site "Bratislava"]
[Date "2022.10.02"]
[Round "9.2"]
[White "Yankelevich, Lev"]
[Black "Laurusas, Tomas"]
[Result "1-0"]
[ECO "B12"]
[WhiteElo "2484"]
[BlackElo "2563"]
[Annotator "TA"]
[PlyCount "129"]
[EventDate "2022.09.30"]
[EventCountry "SVK"]
[SourceTitle "playchess.com"]
[Source "ChessBase"]
[SourceQuality "1"]
[TimeControl "2700+10"]

{[%evp 11,129,19,26,22,29,10,25,7,10,36,50,49,49,54,52,-8,51,-42,-35,-60,-56,-35,-50,-61,-47,-119,-110,-172,-110,-102,-106,-97,-115,-124,-117,-278,-286,-275,-273,-274,-269,-663,-640,-564,-217,-283,-298,-314,-302,-357,-350,-511,-442,-433,-403,-407,-373,-373,-373,-387,-378,-531,-509,-732,-709,-944,-943,-2030,-697,-12835,-595,-12839,-12838,-2276,412,379,3083,2389,1941,1790,1253,870,667,618,1557,1599,1405,1381,1594,1514,1142,1201,1118,1186,981,925,12838,12839,12839,12839,12839,12839,12842,12843,12845,12845,12845,12846,12846,12846,12850,12850,12850,12850,12850,27999,27999,27999,27999,27999]} 1. e4 {[%emt 0:00:03]} c6 {[%emt 0:00:19]} 2. d4 {[%emt 0:00:02]} d5 {[%emt 0:00:02]} 3. e5 {[%emt 0:00:03]} Bf5 {[%emt 0:00:02]} 4. Nf3 {[%emt 0:00:17]} e6 {[%emt 0:00:03]} 5. Be2 {[%emt 0:00:02]} Nd7 {[%emt 0:00:12]} 6. O-O {[%emt 0:00:07]} h6 {[%emt 0:00:56]} 7. a4 {[%emt 0:00:11] B12: Caro-Kann: Advance Variation.} a6 {[%emt 0:00:32]} 8. c3 {[%emt 0:02:00]} Ne7 {[%emt 0:00:32]} 9. a5 {[%emt 0:00:06] White has an edge. has lost popularity (9.b4).} c5 {[%emt 0:00:09]} 10. dxc5 {[%emt 0:00:37]} Nxc5 {[%emt 0:00:04]} 11. Nd4 {[%emt 0:00:03]} Bh7 {[%emt 0:00:42] [#]} 12. b4 $146 {[%emt 0:01:18]} ({Predecessor:} 12. Nd2 Nc6 13. N2f3 Be7 14. Re1 O-O 15. Bf1 Qc7 16. Bf4 Ne4 17. Qa4 Bc5 18. Rec1 {1-0 (69) Ter Sahakyan,S (2645)-Jumabayev,R (2637) Chess.com INT 2021}) 12... Nd7 {[%emt 0:00:17]} 13. Qa4 {[%emt 0:00:43]} (13. f4 $14) 13... Nf5 {[%emt 0:00:32]} ({Black should try} 13... g5 $11) 14. Ba3 {[%emt 0:02:12]} (14. Nxf5 $14 Bxf5 15. g4) 14... Be7 $15 {[%emt 0:00:43]} 15. b5 {[%emt 0:00:53]} O-O {[%emt 0:01:51]} 16. bxa6 {[%emt 0:00:13]} Bxa3 {[%emt 0:00:22]} 17. Qxa3 {[%emt 0:08:29]} bxa6 {[%emt 0:00:45]} 18. Nxf5 {[%emt 0:00:51]} (18. Nf3 $15) 18... Bxf5 $17 {[%emt 0:00:06]} ({But not} 18... exf5 $6 19. f4 $11) 19. Qd6 {[%emt 0:00:02] [#]} (19. f4 $17 {was worth a try.}) 19... Qc8 {[%emt 0:06:35]} (19... Qb8 $1 $19 {...Qb2 is the strong threat.} 20. c4 (20. Qxd7 $2 Qb2 $17) 20... Qb2) 20. c4 {[%emt 0:01:42]} Rd8 {[%emt 0:10:12]} 21. cxd5 {[%emt 0:00:01]} Nc5 {[%emt 0:00:02]} 22. Qe7 {[%emt 0:01:21]} Rxd5 {[%emt 0:05:03] Threatens to win with ...Nb3.} ({Stronger than} 22... Rd7 23. Qh4 $15) 23. Na3 $2 {[%emt 0:02:55] [#]} (23. Nc3 $17 Rxe5 24. Qd6) 23... Nb3 $1 $19 {[%emt 0:03:15]} 24. Rad1 {[%emt 0:02:50] [#]} Nd4 {[%emt 0:00:35]} 25. Bh5 {[%emt 0:04:03]} g6 {[%emt 0:01:05]} 26. Bf3 {[%emt 0:02:23]} (26. Rc1 Qd8 27. Qxd8+ Raxd8 28. Bf3) 26... Nxf3+ {[%emt 0:01:24]} 27. gxf3 {[%emt 0:00:02]} Bd3 $2 {[%emt 0:05:33]} (27... Qc3 28. Rde1 Qxf3) 28. Rfe1 {[%emt 0:00:17]} Qc3 {[%emt 0:00:02][%cal Od3e2] aiming for ...Be2!} 29. Nb1 {[%emt 0:02:34]} Qxa5 {[%emt 0:00:44]} ({Not} 29... Bxb1 $2 30. Rxb1 Qxf3 31. Qb4 $19) 30. f4 {[%emt 0:01:06]} Rad8 {[%emt 0:01:04]} 31. Qh4 {[%emt 0:00:06]} (31. Rc1 $142) 31... h5 {[%emt 0:00:32][%cal Bh6h5,Bh5h4][%mdl 32]} 32. Rc1 {[%emt 0:00:36]} Rd4 {[%emt 0:01:24]} 33. Nc3 {[%emt 0:00:11]} Rc4 {[%emt 0:01:09]} 34. Ra1 {[%emt 0:00:14]} Qc7 {[%emt 0:00:06]} 35. Nd1 {[%emt 0:02:05]} Rdd4 {[%emt 0:00:14]} 36. Qg3 {[%emt 0:00:52]} (36. h3 {keeps fighting.}) 36... h4 {[%emt 0:01:23]} 37. Qg5 {[%emt 0:00:20]} Rxf4 {[%emt 0:00:13] ( -> ...Rg4+)} 38. Ne3 {[%emt 0:00:01] Prevents Rg4+.} Bf5 {[%emt 0:01:02]} 39. h3 {[%emt 0:00:56]} Bxh3 {[%emt 0:00:51]} 40. Kh2 {[%emt 0:00:16]} Bf5 {[%emt 0:00:40]} 41. Rxa6 {[%emt 0:00:04]} Rxf2+ {[%emt 0:00:02]} 42. Kg1 {[%emt 0:00:00]} Rb2 $4 {[%emt 0:00:08][%mdl 8192]} (42... Rcf4 43. Ra8+ Kh7 44. Qf6 Rf1+ 45. Rxf1 Rxf1+ 46. Kxf1 Qc1+ 47. Kf2 Qd2+ 48. Kf3) (42... Rf3 $19 {and all is fine. White must now prevent ...Rg3+.} 43. Nxf5 exf5 44. Rxg6+ fxg6 45. Qxg6+ Qg7 46. Qxg7+ Kxg7) 43. Ra8+ $18 {[%emt 0:00:39]} Kh7 $2 {[%emt 0:00:01]} (43... Rb8 44. Rxb8+ Qxb8 45. Nxc4 Qa7+ 46. Qe3 Qxe3+ 47. Nxe3 f6 48. Nxf5 gxf5) 44. Qf6 {[%emt 0:00:06][%csl Ga8][%cal Rf6h8]} Rb8 {[%emt 0:00:44] Prevents Qh8+.} 45. Rxb8 {[%emt 0:00:04]} Qxb8 {[%emt 0:00:00]} 46. Nxc4 {[%emt 0:00:02]} Qa7+ {[%emt 0:00:18]} 47. Ne3 {[%emt 0:00:01]} Qd4 {[%emt 0:00:04]} 48. Qxf7+ {[%emt 0:03:11]} Kh6 {[%emt 0:00:10]} 49. Qf8+ {[%emt 0:00:07]} Kh5 {[%emt 0:00:00]} 50. Qd6 {[%emt 0:00:13]} Qa7 {[%emt 0:00:15]} 51. Qd2 {[%emt 0:00:46] Hoping for Qe2+.} g5 {[%emt 0:00:29]} 52. Qf2 {[%emt 0:00:09]} Bg6 {[%emt 0:00:10]} 53. Rd1 {[%emt 0:01:57]} Qa4 {[%emt 0:00:06]} 54. Rd8 {[%emt 0:00:31] Threatening mate with Rh8+.} Qa1+ {[%emt 0:00:04]} 55. Qf1 {[%emt 0:00:01]} Qxf1+ {[%emt 0:00:17]} 56. Kxf1 {[%emt 0:00:01]} g4 {[%emt 0:00:01]} 57. Kf2 {[%emt 0:00:36]} g3+ {[%emt 0:00:23]} 58. Kf3 {[%emt 0:00:03]} Bb1 {[%emt 0:00:01]} 59. Ng2 {[%emt 0:00:15]} Kg5 {[%emt 0:00:18]} 60. Rg8+ {[%emt 0:00:04]} Kf5 {[%emt 0:00:01]} 61. Nxh4+ {[%emt 0:00:04]} Kxe5 {[%emt 0:00:11]} 62. Ke3 {[%emt 0:00:08]} Ba2 {[%emt 0:00:02]} 63. Rxg3 {[%emt 0:00:02]} Bd5 {[%emt 0:00:00]} 64. Nf3+ {[%emt 0:00:07]} Kf6 {[%emt 0:00:03]} 65. Kf4 {[%emt 0:00:02] Never resign too early!  Weighted Error Value: White=0.90/Black=0.45} 1-0